fUSD/lending_fUSD_20240503
["ID","MTS","AMOUNT","RATE_DAILY","PERIOD"]
[325356258,1714749050135,-154.59533332,0.00034924,7]
[325356259,1714749050143,-1054.58902169,0.00034925,7]
[325356260,1714749050153,-734.54402054,0.00035,4]
[325356261,1714749050162,-353.13901168,0.00035,120]
[325356262,1714749050172,-2447.30617214,0.00035,4]
[325356263,1714749050181,-1058.16,0.000351,2]
[325356264,1714749050191,-1214.79,0.000351,2]
[325356265,1714749050202,-911.57,0.00035182,2]
[325356266,1714749050212,-719.83,0.00035182,2]
[325356267,1714749050222,-414.11,0.00035182,2]
[325356268,1714749050232,-911.57,0.00035182,2]
[325356269,1714749050241,-911.57,0.00035182,2]
[325356270,1714749050250,-906.03,0.00035182,2]
[325356271,1714749050260,-911.57,0.00035182,2]
[325356272,1714749050269,-911.57,0.00035182,2]
[325356273,1714749050278,-911.32,0.00035183,2]
[325356274,1714749050287,-836.24,0.00035183,2]
[325356275,1714749050297,-631.0,0.000352,3]
[325356276,1714749050306,-501.17802338,0.00035211,7]
[325356277,1714749050315,-306.4637283,0.00035319,2]
[325356278,1714749050329,-394.9962717,0.00035319,2]
[325356279,1714749050339,-300.0,0.00035319,2]
[325356280,1714749050348,-350.82,0.00035319,2]
[325356281,1714749050357,-419.48,0.00035319,2]
[325356282,1714749050367,-150.65,0.00035319,2]
[325356283,1714749050376,-197.51,0.00035319,2]
[325356284,1714749050385,-300.0,0.00035319,2]
[325356285,1714749050395,-162.88,0.00035319,2]
[325356286,1714749050405,-522.46,0.00035319,2]
[325356287,1714749050416,-350.82,0.00035319,2]
[325356288,1714749050426,-575.15,0.00035319,2]
[325356289,1714749050435,-417.46,0.00035319,2]
[325356290,1714749050444,-522.46,0.00035319,2]
[325356291,1714749050455,-350.82,0.00035319,2]
[325356292,1714749050464,-350.82,0.00035319,2]
[325356293,1714749050474,-308.12,0.00035319,2]
[325356294,1714749050483,-419.58,0.00035319,2]
[325356295,1714749050493,-350.82,0.00035319,2]
[325356296,1714749050502,-150.56,0.00035319,2]
[325356297,1714749050512,-419.58,0.00035319,2]
[325356298,1714749050521,-350.82,0.00035319,2]
[325356299,1714749050531,-150.0,0.0003532,2]
[325356300,1714749050541,-150.0,0.0003532,2]
[325356301,1714749050550,-572.33,0.0003532,2]
[325356302,1714749050559,-300.0,0.0003532,2]
[325356303,1714749050569,-150.0,0.0003532,2]
[325356304,1714749050578,-522.59,0.0003532,2]
[325356305,1714749050588,-150.0,0.0003532,2]
[325356306,1714749050597,-301.48,0.0003532,2]
[325356307,1714749050607,-325.94,0.0003532,2]
[325356308,1714749050616,-150.0,0.0003532,2]
[325356309,1714749050625,-522.59,0.0003532,2]
[325356310,1714749050635,-1054.58902169,0.00035358,7]
[325356311,1714749050645,-1000.0,0.000354,2]
[325356312,1714749050655,-157.93592244,0.00035414,7]
[325356313,1714749050664,-306.45,0.00035446,2]
[325356314,1714749050674,-1054.58902169,0.00035481,7]
[325356315,1714749050684,-45394.7292911,0.000355,2]
[325356316,1714749050696,-2030.81171266,0.000355,2]
[325356317,1714749050708,-750.52233814,0.000355,2]
[325356318,1714749050721,-341.40229519,0.000355,2]
[325356319,1714749050733,-3076.2224728,0.000355,2]
[325356320,1714749050744,-275.919,0.000355,2]
[325356321,1714749050756,-811.34832108,0.000355,2]
[325356322,1714749050768,-378.79104645,0.000355,2]
[325356323,1714749050781,-469.65,0.000355,2]
[325356324,1714749050792,-3696.03882751,0.000355,2]
[325356326,1714749061247,349.34656514,9.9e-05,2]
[325356327,1714749087773,150.0,0.00024549,10]
[325356328,1714749088680,150.0,0.00024549,10]
[325356329,1714749089602,150.0,0.00024549,10]
[325356335,1714749671938,4999.98000069,0.000252,10]
[325356578,1714750205663,20639.0,0.00025,120]
[325356592,1714750232425,-234.69981702,0.00010698,2]
[325356594,1714750232435,-1460.77655516,0.00010698,2]
[325356596,1714750232445,-3500.0,0.00010798,2]
[325356598,1714750232455,-155.0,0.00010798,2]
[325356599,1714750232469,-789.34668833,0.00015,2]
[325356611,1714750233568,-167.49559845,0.00015,2]
[325356613,1714750233579,-5932.15930931,0.00015,2]
[325356616,1714750233591,-14349.999995,0.00015,2]
[325356618,1714750233604,-16661.06672764,0.00015,2]
[325356620,1714750233614,-2883.0,0.000163,2]
[325356621,1714750233625,-617.81945781,0.00016997,2]
[325356622,1714750233635,-155.0,0.00016997,2]
[325356623,1714750233645,-254.44744982,0.00016997,2]
[325356624,1714750233656,-1740.14895817,0.00016997,2]
[325356625,1714750233666,-364.13980716,0.00016997,2]
[325356626,1714750233676,-450.0,0.00018,3]
[325356627,1714750233686,-3144.52,0.00018,2]
[325356628,1714750233696,-499.99,0.00019726,2]
[325356629,1714750233706,-771.13635554,0.000199,2]
[325356630,1714750233718,-577.85486708,0.0002,2]
[325356631,1714750233728,-382.16521947,0.0002,2]
[325356632,1714750233737,-380.32280825,0.0002,2]
[325356633,1714750233748,-6226.02936575,0.0002,2]
[325356635,1714750233758,-5174.91787188,0.0002,2]
[325356637,1714750233768,-500.0,0.0002,3]
[325356639,1714750233778,-860.33884772,0.00020026,2]
[325356641,1714750233788,-155.0,0.000209,2]
[325356643,1714750233798,-1748.77005859,0.00020982,2]
[325356645,1714750233807,-716.31163924,0.00021,2]
[325356647,1714750233818,-156.67,0.00021644,2]
[325356649,1714750233828,-151.21,0.00021644,2]
[325356652,1714750233838,-170.99,0.00021644,2]
[325356654,1714750233849,-6756.30981647,0.000219,2]
[325356656,1714750233859,-550.0,0.00022,3]
[325356658,1714750233869,-17689.69576685,0.00023,2]
[325356660,1714750233879,-2000.21639391,0.000234,2]
[325356662,1714750233890,-600.0,0.00024,3]
[325356663,1714750233900,-888.0,0.00024657,2]
[325356664,1714750233910,-155.0,0.00025,2]
[325356665,1714750233921,-2607.3114918,0.00025,2]
[325356666,1714750233931,-2212.56597326,0.000252,2]
[325356667,1714750233942,-155.0,0.000252,2]
[325356668,1714750233952,-1036.89152846,0.000252,2]
[325356669,1714750233962,-650.0,0.00026,3]
[325356670,1714750233974,-888.0,0.00026027,4]
[325356671,1714750233984,-161.68,0.00026268,120]
[325356672,1714750233994,-500.0,0.00026268,2]
[325356673,1714750234004,-1500.0,0.00026268,2]
[325356674,1714750234015,-364.02,0.00026268,2]
[325356675,1714750234027,-2035.15,0.0002665,2]
[325356676,1714750234038,-718.55,0.000269,2]
[325356677,1714750234049,-1847.03,0.0002698,2]
[325356678,1714750234059,-1739.85685118,0.00027,2]
[325356679,1714750234069,-183.26,0.00027059,120]
[325356680,1714750234080,-323.17,0.00027137,2]
[325356681,1714750234090,-250.0,0.00027228,2]
[325356682,1714750234101,-300.0,0.00027397,2]
[325356683,1714750234111,-888.0,0.00027397,6]
[325356684,1714750234121,-374.78,0.00027397,10]
[325356685,1714750234131,-150.0,0.00027397,2]
[325356686,1714750234141,-446.7065697,0.00027416,2]
[325356687,1714750234151,-1246.1478,0.00027877,2]
[325356688,1714750234161,-164.09578582,0.00027877,2]
[325356689,1714750234172,-224.71028306,0.000279,2]
[325356690,1714750234181,-738.76,0.00027952,2]
[325356691,1714750234192,-417.83366488,0.00027976,2]
[325356692,1714750234203,-155.26661843,0.00027976,2]
[325356693,1714750234215,-196.92501413,0.00027976,2]
[325356694,1714750234226,-613.97584886,0.00027976,2]
[325356695,1714750234236,-320.31063503,0.00027976,2]
[325356696,1714750234247,-487.8595397,0.00027976,2]
[325356697,1714750234256,-157.68932206,0.00027976,2]
[325356698,1714750234267,-156.5174048,0.00027976,2]
[325356699,1714750234277,-161.21528224,0.00027976,2]
[325356700,1714750234293,-306.87070392,0.00027976,2]
[325356701,1714750234303,-1625.03197802,0.00027976,2]
[325356702,1714750234313,-155.0,0.00027976,2]
[325356703,1714750234323,-170.58202693,0.00027976,2]
[325356704,1714750234335,-255.36489909,0.00027976,2]
[325356705,1714750234345,-379.18700359,0.00027976,2]
[325356706,1714750234356,-155.48306794,0.00027976,2]
[325356707,1714750234367,-156.69124976,0.00027976,2]
[325356708,1714750234377,-158.02576684,0.00027976,2]
[325356709,1714750234387,-266.38602155,0.00027976,2]
[325356710,1714750234397,-155.4570327,0.00027976,2]
[325356711,1714750234407,-562.83935994,0.00027976,2]
[325356712,1714750234418,-156.66302655,0.00027976,2]
[325356713,1714750234428,-1156.75105451,0.00027976,2]
[325356714,1714750234438,-155.0,0.00027976,2]
[325356715,1714750234449,-308.80368967,0.00027976,2]
[325356716,1714750234459,-156.64303417,0.00027976,2]
[325356717,1714750234471,-252.76358006,0.00027976,2]
[325356718,1714750234481,-157.93501554,0.00027976,2]
[325356719,1714750234492,-1352.26248503,0.00027976,2]
[325356720,1714750234502,-155.0,0.00027976,2]
[325356721,1714750234513,-1647.79784255,0.00027977,2]
[325356722,1714750234524,-6258.01643902,0.00027977,2]
[325356723,1714750234534,-1163.72943363,0.00027977,2]
[325356724,1714750234544,-1181.73607449,0.00027977,2]
[325356725,1714750234555,-15137.02771821,0.00027977,2]
[325356726,1714750234566,-700.0,0.00028,3]
[325356727,1714750234576,-400.0,0.00028015,2]
[325356728,1714750234586,-160.21873538,0.00028451,2]
[325356729,1714750234596,-334.11868226,0.0002852,2]
[325356730,1714750234606,-334.11868226,0.00028564,2]
[325356731,1714750234616,-631.0,0.000286,3]
[325356732,1714750234627,-632.75341302,0.00028609,2]
[325356733,1714750234637,-150.10647152,0.00028619,2]
[325356734,1714750234648,-150.10647152,0.00028657,2]
[325356735,1714750234658,-888.0,0.00028767,9]
[325356736,1714750234668,-166.66666666,0.00028776,2]
[325356737,1714750234678,-632.75341302,0.00028811,2]
[325356738,1714750234688,-152.12902793,0.00028911,2]
[325356739,1714750234699,-155.70643541,0.00028919,2]
[325356741,1714750235007,-632.75341302,0.00028948,2]
[325356742,1714750235119,-150.10647152,0.00029028,2]
[325356743,1714750235130,-632.75341302,0.00029074,2]
[325356744,1714750235140,-334.11868226,0.00029083,2]
[325356745,1714750235150,-192.85145654,0.00029169,2]
[325356746,1714750235159,-632.75341302,0.00029254,2]
[325356747,1714750235169,-632.75341302,0.00029256,2]
[325356748,1714750235179,-150.10647152,0.00029291,2]
[325356749,1714750235190,-632.75341302,0.00029378,2]
[325356750,1714750235200,-364.02,0.00029551,2]
[325356751,1714750235210,-17691.0,0.000296,5]
[325356752,1714750235223,-156.06078339,0.00029664,2]
[325356753,1714750235233,-632.75341302,0.00029767,2]
[325356754,1714750235244,-632.75341302,0.00029937,2]
[325356755,1714750235254,-7403.06210331,0.0003,4]
[325356756,1714750235265,-774.05040688,0.0003,4]
[325356757,1714750235275,-750.0,0.0003,3]
[325356758,1714750235286,-150.10647152,0.00030031,7]
[325356759,1714750235302,-150.0,0.00030108,2]
[325356760,1714750235312,-279.8,0.00030108,2]
[325356761,1714750235323,-685.0,0.00030108,30]
[325356762,1714750235335,-253.0,0.00030108,30]
[325356763,1714750235345,-292.26254,0.00030108,2]
[325356764,1714750235355,-153.33272222,0.00030108,2]
[325356765,1714750235365,-5.1262334,0.00030136,11]
[325356766,1714750235381,-557.1737666,0.00030136,11]
[325356767,1714750235391,-632.75341302,0.00030271,7]
[325356768,1714750235401,-334.11868226,0.00030587,7]
[325356769,1714750235411,-192.85145654,0.0003061,7]
[325356770,1714750235421,-156.06078339,0.00031407,7]
[325356771,1714750235431,-334.11868226,0.0003142,7]
[325356772,1714750235441,-192.85145654,0.00031487,7]
[325356773,1714750235450,-155.31314028,0.00031507,7]
[325356774,1714750235461,-400.0,0.00031517,2]
[325356775,1714750235474,-21.77511104,0.00031569,120]
[325356776,1714750235486,-161.48488896,0.00031569,120]
[325356777,1714750235495,-632.75341302,0.00031583,7]
[325356778,1714750235505,-152.10816878,0.00031826,7]
[325356779,1714750235515,-632.75341302,0.00031829,7]
[325356780,1714750235525,-800.0,0.00032,3]
[325356781,1714750235536,-150.10647152,0.00032217,7]
[325356782,1714750235546,-157.93592246,0.00032274,7]
[325356783,1714750235555,-155.31314029,0.00032307,7]
[325356784,1714750235565,-66.95178195,0.00032464,7]
[325356785,1714750235659,-125.89967459,0.00032464,7]
[325356786,1714750235669,-241.88766601,0.00032536,7]
[325356788,1714750238393,-92.23101625,0.00032536,7]
[325356789,1714750238403,-156.06078339,0.00032634,7]
[325356790,1714750238412,-154.59533334,0.00032648,7]
[325356791,1714750238422,-632.75341302,0.00032656,7]
[325356792,1714750238431,-160.21873538,0.00032796,7]
[325356793,1714750238443,-192.85145654,0.00032813,7]
[325356794,1714750238454,-364.02,0.00032835,2]
[325356795,1714750238465,-500.0,0.000329,2]
[325356796,1714750238475,-192.85145654,0.00032952,7]
[325356797,1714750238484,-152.10816878,0.00032997,7]
[325356798,1714750238493,-150.0,0.00033,2]
[325356799,1714750238503,-150.10647152,0.0003308,7]
[325356800,1714750238513,-150.10647152,0.00033162,7]
[325356801,1714750238522,-192.85145654,0.00033245,7]
[325356802,1714750238532,-152.10816878,0.00033294,7]
[325356803,1714750238541,-192.85145654,0.00033402,7]
[325356804,1714750238551,-192.85145654,0.00033596,7]
[325356805,1714750238561,-150.10647152,0.00033612,7]
[325356806,1714750238570,-334.11868226,0.00033697,7]
[325356807,1714750238580,-334.11868226,0.0003375,7]
[325356808,1714750238589,-192.85145654,0.000338,7]
[325356809,1714750238599,-632.75341302,0.00033817,7]
[325356810,1714750238609,-150.10647152,0.00033855,7]
[325356811,1714750238619,-192.85145654,0.00033928,7]
[325356812,1714750238628,-632.75341302,0.00033928,7]
[325356813,1714750238638,-1649.510415,0.00033973,14]
[325356814,1714750238647,-334.11868226,0.00034051,7]
[325356815,1714750238657,-192.85145654,0.00034178,7]
[325356816,1714750238748,-1417.07,0.00034224,2]
[325356817,1714750238757,-911.57,0.00034224,2]
[325356818,1714750238767,-911.57,0.00034224,2]
[325356819,1714750238777,-832.24,0.00034224,2]
[325356820,1714750238786,-632.75341302,0.00034285,7]
[325356821,1714750238795,-414.36,0.0003435,2]
[325356822,1714750238805,-414.36,0.0003435,2]
[325356823,1714750238815,-414.36,0.0003435,2]
[325356824,1714750238825,-414.36,0.0003435,2]
[325356825,1714750238834,-911.57,0.0003435,2]
[325356826,1714750238845,-414.36,0.0003435,2]
[325356827,1714750238854,-911.57,0.0003435,2]
[325356828,1714750238863,-414.36,0.0003435,2]
[325356829,1714750238873,-911.57,0.0003435,2]
[325356830,1714750238882,-414.36,0.0003435,2]
[325356831,1714750238893,-911.57,0.0003435,2]
[325356833,1714750238902,-911.57,0.0003435,2]
[325356837,1714750238911,-414.36,0.0003435,2]
[325356841,1714750238920,-334.11868226,0.00034393,7]
[325356845,1714750238930,-151.21,0.0003446,2]
[325356847,1714750238939,-334.11868226,0.00034462,7]
[325356850,1714750238948,-350.82,0.00034498,2]
[325356852,1714750238958,-350.82,0.00034498,2]
[325356854,1714750238967,-192.85145654,0.00034521,7]
[325356855,1714750238976,-150.0,0.00034624,2]
[325356857,1714750238986,-711.09,0.00034624,2]
[325356860,1714750238996,-300.44,0.00034624,2]
[325356862,1714750239005,-286.22,0.00034624,2]
[325356863,1714750239015,-150.0,0.00034624,2]
[325356866,1714750239025,-163.01,0.00034624,2]
[325356868,1714750239034,-150.0,0.00034624,2]
[325356870,1714750239043,-150.0,0.00034624,2]
[325356872,1714750239054,-522.59,0.00034624,2]
[325356874,1714750239064,-865.42,0.00034624,2]
[325356875,1714750239073,-150.0,0.00034624,2]
[325356878,1714750239084,-150.0,0.00034624,2]
[325356880,1714750239094,-150.0,0.00034624,2]
[325356881,1714750239104,-163.01,0.00034624,2]
[325356883,1714750239113,-300.0,0.00034624,2]
[325356886,1714750239123,-150.0,0.00034624,2]
[325356887,1714750239133,-163.01,0.00034624,2]
[325356889,1714750239142,-522.59,0.00034624,2]
[325356892,1714750239152,-89.70160208,0.00034624,2]
[325356894,1714750239164,-60.29839792,0.00034624,2]
[325356896,1714750239173,-150.0,0.00034624,2]
[325356898,1714750239182,-388.17,0.00034624,2]
[325356900,1714750239191,-419.34,0.00034624,2]
[325356902,1714750239201,-150.0,0.00034624,2]
[325356904,1714750239210,-522.59,0.00034624,2]
[325356906,1714750239220,-150.0,0.00034624,2]
[325356908,1714750239229,-150.0,0.00034624,2]
[325356910,1714750239238,-163.01,0.00034624,2]
[325356912,1714750239249,-150.0,0.00034624,2]
[325356914,1714750239258,-150.0,0.00034624,2]
[325356916,1714750239268,-522.59,0.00034624,2]
[325356918,1714750239278,-163.01,0.00034624,2]
[325356920,1714750239292,-150.0,0.00034624,2]
[325356922,1714750239302,-163.01,0.00034624,2]
[325356924,1714750239311,-301.48,0.00034624,2]
[325356926,1714750239321,-150.0,0.00034624,2]
[325356928,1714750239331,-516.32,0.00034624,2]
[325356930,1714750239340,-163.01,0.00034624,2]
[325356932,1714750239349,-163.01,0.00034624,2]
[325356934,1714750239359,-1649.510415,0.00034795,14]
[325356936,1714750239370,-333.35480154,0.000348,2]
[325356938,1714750239379,-160.21873538,0.0003488,7]
[325356940,1714750239388,-22660.52171003,0.0003489,5]
[325356942,1714750239400,-28408.82189852,0.0003489,5]
[325356948,1714750239447,-24827.1337953,0.0003489,5]
[325356951,1714750239458,-804.4421225,0.0003489,5]
[325357041,1714750240416,-5000.0,0.0003489,5]
[325357081,1714750240709,-254.51329464,0.0003489,5]
[325357084,1714750240722,-26046.24296875,0.0003489,5]
[325357086,1714750240733,-3079.05,0.0003489,5]
[325357088,1714750240744,-470.25152914,0.0003489,5]
[325357090,1714750240756,-765.33999999,0.0003489,5]
[325357092,1714750240767,-2119.16111,0.0003489,5]
[325357095,1714750240779,-1679.45602729,0.0003489,5]
[325357128,1714750241094,-120966.76051384,0.0003489,5]
[325357130,1714750241103,-11275.25372813,0.000349,2]
[325357132,1714750241113,-192.85145654,0.00034951,7]
[325357134,1714750241122,-400.0,0.00035018,2]
[325357136,1714750241132,-259.06,0.00035045,2]
[325357137,1714750241141,-150.0,0.00035045,2]
[325357139,1714750241150,-150.0,0.00035045,2]
[325357141,1714750241159,-150.0,0.00035045,2]
[325357143,1714750241169,-150.0,0.00035045,2]
[325357145,1714750241178,-150.0,0.00035045,2]
[325357147,1714750241188,-150.0,0.00035045,2]
[325357149,1714750241197,-192.85145654,0.00035141,7]
[325357152,1714750241207,-200.00824992,0.0003515,2]
[325357154,1714750241216,-414.36,0.00035309,2]
[325357155,1714750241227,-911.57,0.00035309,2]
[325357157,1714750241236,-250.07,0.00035309,2]
[325357160,1714750241246,-414.36,0.00035309,2]
[325357161,1714750241256,-414.36,0.00035309,2]
[325357164,1714750241265,-414.36,0.00035309,2]
[325357166,1714750241276,-414.36,0.00035309,2]
[325357168,1714750241286,-414.36,0.00035309,2]
[325357169,1714750241299,-414.36,0.00035309,2]
[325357171,1714750241308,-414.36,0.00035309,2]
[325357173,1714750241318,-414.36,0.00035309,2]
[325357175,1714750241327,-414.36,0.00035309,2]
[325357177,1714750241336,-414.36,0.00035309,2]
[325357179,1714750241346,-414.36,0.00035309,2]
[325357181,1714750241356,-414.36,0.00035309,2]
[325357183,1714750241366,-828.47,0.00035309,2]
[325357185,1714750241376,-312.99,0.00035309,2]
[325357187,1714750241386,-414.36,0.00035309,2]
[325357189,1714750241395,-414.36,0.00035309,2]
[325357191,1714750241404,-414.36,0.00035309,2]
[325357193,1714750241414,-248.85,0.00035309,2]
[325357195,1714750241423,-192.85145654,0.00035329,7]
[325357197,1714750241432,-119934.9946,0.000354,2]
[325357200,1714750241442,-500.0,0.000354,2]
[325357201,1714750241452,-1008.08,0.000354,2]
[325357203,1714750241461,-179.20149185,0.000354,2]
[325357205,1714750241472,-150.10647152,0.00035433,7]
[325357208,1714750241482,-150.10647152,0.00035441,7]
[325357210,1714750241492,-163.01,0.00035446,2]
[325357211,1714750241500,-163.01,0.00035446,2]
[325357213,1714750241510,-163.01,0.00035446,2]
[325357215,1714750241518,-163.01,0.00035446,2]
[325357217,1714750241528,-163.01,0.00035446,2]
[325357219,1714750241538,-163.01,0.00035446,2]
[325357221,1714750241547,-301.68,0.00035446,2]
[325357223,1714750241555,-150.45,0.00035446,2]
[325357225,1714750241564,-150.66,0.0003549,2]
[325357227,1714750241573,-150.66,0.0003549,2]
[325357229,1714750241583,-150.66,0.0003549,2]
[325357231,1714750241592,-150.66,0.0003549,2]
[325357233,1714750241603,-39986.54417427,0.000355,2]
[325357250,1714750241765,-299.8197336,0.000355,2]
[325357252,1714750241778,-340.0090999,0.000355,2]
[325357255,1714750241790,-953.445,0.000355,2]
[325357257,1714750241803,-359.38098,0.000355,2]
[325357259,1714750241815,-2315.96322277,0.000355,2]
[325357261,1714750241827,-2930.325011,0.000355,2]
[325357264,1714750241840,-184618.77028718,0.000355,2]
[325357265,1714750241849,-2000.0,0.000355,2]
[325357266,1714750241859,-200.0,0.000355,2]
[325357267,1714750241869,-2000.0,0.000355,2]
[325357268,1714750241879,-200.0,0.000355,2]
[325357269,1714750241888,-2000.0,0.000355,2]
[325357270,1714750241897,-200.0,0.000355,2]
[325357271,1714750241906,-3000.0,0.000355,2]
[325357272,1714750241915,-2000.0,0.000355,2]
[325357273,1714750241924,-200.0,0.000355,2]
[325357274,1714750241933,-160.21873538,0.00035515,7]
[325357275,1714750241942,-150.0,0.00035593,2]
[325357276,1714750241950,-150.0,0.00035593,2]
[325357278,1714750241959,-160.21873538,0.00035596,7]
[325357280,1714750241969,-2101.01942897,0.000356,30]
[325357282,1714750241982,-1649.510415,0.00035616,14]
[325357284,1714750241992,-160.02716343,0.00035655,7]
[325357286,1714750242001,-150.0,0.00035659,2]
[325357288,1714750242010,-150.0,0.0003572,2]
[325357290,1714750242019,-150.0,0.0003572,2]
[325357292,1714750242029,-150.0,0.0003572,2]
[325357294,1714750242038,-150.0,0.0003572,2]
[325357296,1714750242048,-152.83783517,0.00035841,7]
[325357298,1714750242057,-2000.0,0.00035855,2]
[325357300,1714750242066,-200.0,0.00035855,2]
[325357302,1714750242076,-2000.0,0.00035855,2]
[325357304,1714750242085,-200.0,0.00035855,2]
[325357306,1714750242094,-2000.0,0.00035855,2]
[325357308,1714750242103,-200.0,0.00035855,2]
[325357310,1714750242112,-2000.0,0.00035855,2]
[325357312,1714750242121,-200.0,0.00035855,2]
[325357314,1714750242130,-163.87864288,0.000359,2]
[325357316,1714750242139,-200.0,0.000359,13]
[325357318,1714750242148,-150.10647152,0.00035929,7]
[325357320,1714750242157,-156.06078339,0.00035959,7]
[325357322,1714750242166,-183.26,0.00036079,120]
[325357324,1714750242176,-364.02,0.00036118,2]
[325357325,1714750242186,-911.32,0.0003613,2]
[325357327,1714750242195,-306.46,0.0003613,2]
[325357329,1714750242204,-414.36,0.0003613,2]
[325357331,1714750242213,-414.36,0.0003613,2]
[325357333,1714750242223,-414.36,0.0003613,2]
[325357335,1714750242232,-414.36,0.0003613,2]
[325357337,1714750242241,-911.57,0.0003613,2]
[325357339,1714750242251,-911.57,0.0003613,2]
[325357341,1714750242262,-911.57,0.0003613,2]
[325357343,1714750242271,-906.03,0.0003613,2]
[325357345,1714750242281,-911.57,0.0003613,2]
[325357348,1714750242292,-150.66,0.00036154,2]
[325357350,1714750242303,-58000.0,0.00036164,3]
[325357352,1714750242312,-2000.0,0.00036214,2]
[325357353,1714750242321,-200.0,0.00036214,2]
[325357355,1714750242332,-2000.0,0.00036214,2]
[325357357,1714750242341,-200.0,0.00036214,2]
[325357359,1714750242350,-2000.0,0.00036214,2]
[325357361,1714750242359,-200.0,0.00036214,2]
[325357363,1714750242370,-2000.0,0.00036214,2]
[325357365,1714750242379,-200.0,0.00036214,2]
[325357367,1714750242388,-192.85145654,0.00036241,7]
[325357369,1714750242398,-150.0,0.00036268,2]
[325357371,1714750242407,-150.0,0.00036268,2]
[325357373,1714750242416,-150.0,0.00036268,2]
[325357375,1714750242426,-150.0,0.00036268,2]
[325357377,1714750242437,-150.0,0.00036268,2]
[325357379,1714750242446,-150.0,0.00036268,2]
[325357381,1714750242456,-150.0,0.00036268,2]
[325357383,1714750242465,-150.0,0.00036268,2]
[325357385,1714750242476,-150.0,0.00036268,2]
[325357387,1714750242485,-150.0,0.00036268,2]
[325357389,1714750242496,-334.11868226,0.00036286,7]
[325357391,1714750242505,-1008.08,0.00036395,2]
[325357393,1714750242516,-632.75341302,0.00036407,7]
[325357395,1714750242525,-1649.510415,0.00036438,14]
[325357397,1714750242535,-150.10647152,0.00036493,7]
[325357399,1714750242544,-2000.0,0.00036576,2]
[325357401,1714750242554,-200.0,0.00036576,2]
[325357403,1714750242563,-2000.0,0.00036576,2]
[325357405,1714750242573,-200.0,0.00036576,2]
[325357407,1714750242583,-2000.0,0.00036576,2]
[325357409,1714750242593,-200.0,0.00036576,2]
[325357411,1714750242603,-2000.0,0.00036576,2]
[325357413,1714750242611,-200.0,0.00036576,2]
[325357415,1714750242621,-154.95404309,0.00036577,7]
[325357417,1714750242630,-152.10816878,0.00036591,7]
[325357420,1714750242642,-152.10816878,0.00036759,7]
[325357422,1714750242651,-632.75341302,0.00036775,7]
[325357424,1714750242660,-154.53918004,0.00036812,2]
[325357426,1714750242670,-192.85145654,0.00036813,7]
[325357428,1714750242679,-192.85145654,0.0003683,7]
[325357429,1714750242689,-150.66,0.0003689,2]
[325357431,1714750242698,-195.60061969,0.000369,9]
[325357433,1714750242707,-63450.1078,0.000369,120]
[325357435,1714750242716,-632.75341302,0.00036912,7]
[325357437,1714750242727,-2000.0,0.00036941,2]
[325357439,1714750242737,-200.0,0.00036941,2]
[325357441,1714750242747,-2000.0,0.00036941,2]
[325357443,1714750242757,-200.0,0.00036941,2]
[325357445,1714750242767,-2000.0,0.00036941,2]
[325357447,1714750242777,-200.0,0.00036941,2]
[325357449,1714750242786,-2000.0,0.00036941,2]
[325357451,1714750242795,-200.0,0.00036941,2]